{"text_format":"1","workbook":"xlsx","n_sheets":5,"sheets":["Dev Fin Capacity","Site Information ","URA ","URA2","URA3 print and sign"],"not_rendered":{"charts":0,"images":2,"macros":1,"external_links":1,"defined_names":21,"comments":0,"pivot_tables":0},"unopened":[],"bounds":{"document_bytes":16777216,"sheet_cells":100000,"rows_first":2000,"rows_last":500,"rows_between":2000,"halvings":0,"cell_chars":16384,"cell_head_chars":4096},"cells_cut":0,"cells_raw":0,"read":"whole","date_system":"1900"}

{"sheet":"Dev Fin Capacity","index":0,"n_rows":137,"n_cols":6,"rows_kept":137,"cut":false,"hidden":true,"merged":[[132,5,136,5],[59,5,64,5],[67,5,69,5],[72,5,74,5],[77,5,83,5],[89,5,92,5],[94,5,97,5],[99,5,102,5],[105,5,107,5],[110,5,112,5],[118,5,121,5],[126,5,129,5]]}
["Instructions for Completing the Financial Analysis Sheet "]
[]
["The HOME regulations require the City to evaluate the fiscal soundness of applicants seeking HOME funds. The City must determine if the "]
["applicant has acceptable financial capacity based on the size, scope and complexity of the project. "]
["The City will determine if the developer has the financial capacity necessary to complete the proposed project and will evaluate the developer's net worth,"]
["portfolio risk, pre-development funding and liquidity. Developers with limited financial resources will only be considered for projects where cash needs"]
["will not exceed the developer's net or liquid assets. "]
[]
["This sheet contains the spreadsheets for the 2020 HTF RFP application to facilitate the analysis of the applicant's finances.  "]
[]
["Submitting the financial analysis:"]
["Hard (paper) copy: must be submitted as the appropriate exhibit in your application along with the appropriate audited financial statements."]
["Electronic copy: may be submitted with your application, either on disk or via email to ",null,null,"CD-DND@city.cleveland.oh.us"]
[]
["Filling out the financial analysis workbook:"]
["The worksheets have been protected.  Applicants should  complete the information on the data entry sheet using the organizations stand alone figures from "]
[" their audited financial statement.  The page number for each entry should be referenced on the form in the gray cell.    "]
[]
["Use the TAB key to navigate through the worksheet: it will bring your cursor only to those cells that need entries.  Excel will calculate figures for the "]
["Income Statement Ratio, Balance Sheet Ratio and Operating Cycle Ratio.  Please review these worksheets. Use the yellow cells  next to these calculation "]
["to provide explanation or mitigating factors.   Reference page number in the audit if appropriate.  "]
[]
["If you have questions, or have special circumstances and need to further manipulate the spreadsheets, please contact Michael McBride at 216-664-2005 or "]
["mmcbride@city.cleveland.oh.us"]
[]
[]
["**Input data in cream colored fields.**"]
["FIELD ",2016,2017,2018,2019,"Comments"]
["Income Statement"]
["Revenue"]
["Operating Expenses "]
["Depreciation"]
["Taxes & Insurance"]
[]
["Balance Sheet"]
["Cash & Marketable Securities & Other Investments"]
["Receivables"]
["Current Assets"]
["Non Current Assets"]
["Non-Current Related-party receivables"]
["Payables"]
["Current Liabilities"]
["Long Term Liabilities"]
["Unrestricted Net Assets"]
[]
["Cash Flows"]
["Net Cash After Operating Activities"]
["Net Cash Used in Investing Activities"]
["Net Cash Used in Capital Expenditures"]
["Net Cash Provided by Financing Activities"]
["Net Increase/Decrease in Cash"]
["Cash at Beginning of Year"]
["Cash at End of Year"]
[]
[]
["Calculating Income Statement Ratios and Cash flow Analysis"]
[]
[null,{"$f":"+B28","v":2016},{"$f":"+C28","v":2017},2018,2019,"Developer's Analysis Comments "]
["Revenue Growth - How much has the Company's Revenue Grown"]
["This Year's Revenue",null,{"$f":"C30","v":0},{"$f":"D30","v":0},{"$f":"E30","v":0}]
["- Last year's Revenue",null,{"$f":"B30","v":0},{"$f":"C30","v":0},{"$f":"D30","v":0}]
["= Revenue Difference",null,{"$f":"C60-C61","v":0},{"$f":"D60-D61","v":0},{"$f":"E60-E61","v":0}]
["/ Last Year's Revenue",null,{"$f":"C62/C61","v":{"$error":"#DIV/0!"}},{"$f":"D62/D61","v":{"$error":"#DIV/0!"}},{"$error":"#DIV/0!"}]
["x 100"]
["=% of Revenue Growth",null,{"$f":"C63","v":{"$error":"#DIV/0!"}},{"$f":"D63","v":{"$error":"#DIV/0!"}},{"$f":"E63","v":{"$error":"#DIV/0!"}}]
[]
["Operating Profit/Revenue:  Has the company maintained its Gross Profit Margin?"]
["Operating Profit",{"$f":"B30-B31","v":0},{"$f":"C30-C31","v":0},{"$f":"D30-D31","v":0},{"$f":"E30-E31","v":0}]
["/Revenue",{"$f":"B30","v":0},{"$f":"C30","v":0},{"$f":"D30","v":0},{"$f":"E30","v":0}]
["= as % of Revenue",{"$f":"B68/B69","v":{"$error":"#DIV/0!"}},{"$f":"C68/C69","v":{"$error":"#DIV/0!"}},{"$error":"#DIV/0!"},{"$error":"#DIV/0!"}]
[]
["Operating Expenses/Revenue:  Has the company been able to control its operating costs?"]
["Operating Expenses ",{"$f":"B31","v":0},{"$f":"C31","v":0},{"$f":"D31","v":0},{"$f":"E31","v":0}]
["/Revenue",{"$f":"B30","v":0},{"$f":"C30","v":0},{"$f":"D30","v":0},{"$f":"E30","v":0}]
["= as % of Revenue",{"$f":"B73/B74","v":{"$error":"#DIV/0!"}},{"$f":"C73/C74","v":{"$error":"#DIV/0!"}},{"$error":"#DIV/0!"},{"$error":"#DIV/0!"}]
[]
[" Cash Flow Analysis"]
["Net Increase/Decrease in Cash",{"$f":"B51","v":0},{"$f":"C51","v":0},{"$f":"D51","v":0},{"$f":"E51","v":0}]
["Net Cash After Operating Activities",{"$f":"B47","v":0},0,0,0]
["Net Cash Used in Investing Activities",0,0,0,0]
["Net Cash Used in Capital Expenditures",0,0,0,0]
["Net Cash Provided by Financing Activities",0,0,0,0]
["Cash and Cash Equivalents, end of year",{"$f":"B36","v":0},{"$f":"C36","v":0},{"$f":"D36","v":0},{"$f":"E36","v":0}]
["Days Cash  ",{"$f":"(B36/B31)*360","v":{"$error":"#DIV/0!"}},{"$f":"(C36/C31)*360","v":{"$error":"#DIV/0!"}},{"$f":"(D36/D31)*360","v":{"$error":"#DIV/0!"}},{"$f":"(E36/E31)*360","v":{"$error":"#DIV/0!"}}]
[]
[]
["Calculating Balance Sheet Ratios"]
[null,{"$f":"+B58","v":2016},{"$f":"+C58","v":2017},2018,2019,"Developer's Analysis Comments "]
["Current Ratio:  Can company generate current/operating cash to pay bills due in next 12 months"]
["Current Assets",{"$f":"B38","v":0},{"$f":"C38","v":0},{"$f":"D38","v":0},{"$f":"E38","v":0}]
["/Current Liabilities",{"$f":"B42","v":0},{"$f":"C42","v":0},{"$f":"D42","v":0},{"$f":"E42","v":0}]
["= Current Ratio",{"$f":"B90/B91","v":{"$error":"#DIV/0!"}},{"$f":"C90/C91","v":{"$error":"#DIV/0!"}},{"$error":"#DIV/0!"},{"$error":"#DIV/0!"}]
[]
["Working Capital:  How much cash remains after the company pays its bills in next 12 months"]
["Current Assets",{"$f":"B38","v":0},{"$f":"C38","v":0},{"$f":"D38","v":0},{"$f":"E38","v":0}]
[" -Current Liabilities",{"$f":"B42","v":0},{"$f":"C42","v":0},{"$f":"D42","v":0},{"$f":"E42","v":0}]
["= Working Capital",{"$f":"B95-B96","v":0},{"$f":"C95-C96","v":0},0,0]
[]
["Days Current Assets:  How many days cash is available"]
["Current Assets",{"$f":"B38","v":0},{"$f":"C38","v":0},{"$f":"D38","v":0},{"$f":"E38","v":0}]
["/Operating Expense",{"$f":"B31","v":0},{"$f":"C31","v":0},{"$f":"D31","v":0},{"$f":"E31","v":0}]
["x 360 days in Period",{"$f":"B100/B101","v":{"$error":"#DIV/0!"}},{"$f":"C100/C101","v":{"$error":"#DIV/0!"}},{"$error":"#DIV/0!"},{"$error":"#DIV/0!"}]
["= Days Cash on total current assets",{"$f":"B102*360","v":{"$error":"#DIV/0!"}},{"$f":"C102*360","v":{"$error":"#DIV/0!"}},{"$error":"#DIV/0!"},{"$error":"#DIV/0!"}]
[]
["Debt Ratio:  How has the company financed operations between debt & assets?"]
["Total Liabilities (assuming Current Liabilities and Long Term Liabilities)",{"$f":"B42+B43","v":0},{"$f":"C42+C43","v":0},{"$f":"D42+D43","v":0},{"$f":"E42+E43","v":0}]
["/ Total Assets (assuming Current Assets+Non-Current Assets)",{"$f":"B39+B38","v":0},{"$f":"C39+C38","v":0},{"$f":"D39+D38","v":0},{"$f":"E39+E38","v":0}]
["= Debt Ratio",{"$f":"B106/B107","v":{"$error":"#DIV/0!"}},{"$f":"C106/C107","v":{"$error":"#DIV/0!"}},{"$error":"#DIV/0!"},{"$error":"#DIV/0!"}]
[]
["Debt to Equity Ratio:  "]
["Total Liabilities",{"$f":"B42+B43","v":0},{"$f":"C42+C43","v":0},{"$f":"D42+D43","v":0},{"$f":"E42+E43","v":0}]
["/ Net Unrestricted Assets",{"$f":"B44","v":0},{"$f":"C44","v":0},{"$f":"D44","v":0},{"$f":"E44","v":0}]
["= Debt to Equity Ratio",{"$f":"B111/B112","v":{"$error":"#DIV/0!"}},{"$f":"C111/C112","v":{"$error":"#DIV/0!"}},{"$error":"#DIV/0!"},{"$error":"#DIV/0!"}]
[]
["Operating Cycle Ratios"]
[]
[null,{"$f":"+B88","v":2016},{"$f":"+C88","v":2017},2018,2019,"Developer's Analysis Comments "]
["Days Receivable:  How long, on average, does the company take to collect ?"]
["Receivables",{"$f":"B37","v":0},{"$f":"C37","v":0},{"$f":"D37","v":0},{"$f":"E37","v":0}]
["/Revenue",{"$f":"B30","v":0},{"$f":"C30","v":0},{"$f":"D30","v":0},{"$f":"E30","v":0}]
["x 360 days in Period",{"$f":"B119/B120","v":{"$error":"#DIV/0!"}},{"$f":"C119/C120","v":{"$error":"#DIV/0!"}},{"$error":"#DIV/0!"},{"$error":"#DIV/0!"}]
["= Days Receivable",{"$f":"B121*360","v":{"$error":"#DIV/0!"}},{"$f":"C121*360","v":{"$error":"#DIV/0!"}},{"$error":"#DIV/0!"},{"$error":"#DIV/0!"}]
[]
["Non Current  related Party  Receivables",{"$f":"B40","v":0},{"$f":"C40","v":0},{"$f":"D40","v":0},{"$f":"E40","v":0}]
[]
["Days Payable:  How long, on average, does the company take to pay its suppliers?"]
["Payables",{"$f":"B41","v":0},{"$f":"C41","v":0},{"$f":"D41","v":0},{"$f":"E41","v":0}]
["/operating expense",{"$f":"B31","v":0},{"$f":"C31","v":0},{"$f":"D31","v":0},{"$f":"E31","v":0}]
["x 360 days in Period",{"$f":"B127/B128","v":{"$error":"#DIV/0!"}},{"$f":"C127/C128","v":{"$error":"#DIV/0!"}},{"$error":"#DIV/0!"},{"$error":"#DIV/0!"}]
["= Days Payable",{"$f":"B129*360","v":{"$error":"#DIV/0!"}},{"$f":"C129*360","v":{"$error":"#DIV/0!"}},{"$error":"#DIV/0!"},{"$error":"#DIV/0!"}]
[]
["Operating Cycle:  How long, on average, does the company have its cash tied up in the operations of the business"]
["+ Days Receivable",{"$f":"B122","v":{"$error":"#DIV/0!"}},{"$f":"C122","v":{"$error":"#DIV/0!"}},{"$error":"#DIV/0!"},{"$error":"#DIV/0!"}]
[" - Days Payable",{"$f":"B130","v":{"$error":"#DIV/0!"}},{"$f":"C130","v":{"$error":"#DIV/0!"}},{"$error":"#DIV/0!"},{"$error":"#DIV/0!"}]
["= Operating Cycle",{"$f":"B133+B134","v":{"$error":"#DIV/0!"}},{"$f":"C133+C134","v":{"$error":"#DIV/0!"}},{"$error":"#DIV/0!"},{"$error":"#DIV/0!"}]
["Days Cash-liquid assets",{"$f":"(B36/B31)*365","v":{"$error":"#DIV/0!"}},{"$f":"(C36/C31)*365","v":{"$error":"#DIV/0!"}},{"$f":"(D36/D31)*365","v":{"$error":"#DIV/0!"}},{"$f":"(E36/E31)*365","v":{"$error":"#DIV/0!"}}]
["Days Cash - total current assets",{"$f":"B103","v":{"$error":"#DIV/0!"}},{"$f":"C103","v":{"$error":"#DIV/0!"}},{"$error":"#DIV/0!"},{"$error":"#DIV/0!"}]

{"sheet":"Site Information ","index":1,"n_rows":12,"n_cols":14,"rows_kept":12,"cut":false,"hidden":false,"merged":[[0,0,0,10],[1,8,2,8],[1,7,2,7],[1,5,2,5],[1,4,2,4],[1,3,2,3],[1,1,2,1],[1,0,2,0],[1,2,2,2]]}
["Site Summary "]
["Parcel Number","Address","County Fiscal Office Assessed Value","Owner","Ward","Census Tract","Type of Site Control (Drop Down Box)","Date of Signed Option/Agreement/Deed","Date of Notice of Voluntary Acqusition ","Is there a structure on the property  ","If structure, is the structure vacant or occupied"]
[null,null,null,null,null,null,"Drop Down Box",null,null,"Drop Down Box","Drop Down Box",null,null,"Purchase Option"]
[null,null,null,null,null,null,null,null,null,null,null,null,null,"Purchase Agreement"]
[null,null,null,null,null,null,null,null,null,null,null,null,null,"Deed"]
[null,null,null,null,null,null,null,null,null,null,null,null,null,"Ground Lease"]
[]
[null,null,null,null,null,null,null,null,null,null,null,null,null,"Yes"]
[null,null,null,null,null,null,null,null,null,null,null,null,null,"No"]
[]
[null,null,null,null,null,null,null,null,null,null,null,null,null,"Vacant"]
[null,null,null,null,null,null,null,null,null,null,null,null,null,"Occupied"]

{"sheet":"URA ","index":2,"n_rows":62,"n_cols":36,"rows_kept":62,"cut":false,"hidden":false,"merged":[[48,27,49,33],[34,2,35,10],[35,21,35,35],[37,1,41,35],[44,1,45,7],[44,9,45,15],[44,16,45,25],[44,27,45,35],[33,3,33,9],[24,1,24,11],[24,13,24,23],[24,25,24,35],[25,1,25,11],[25,13,25,23],[25,25,25,35],[26,1,26,11],[26,13,26,23],[26,25,26,35],[28,21,28,35],[32,3,32,9],[21,1,21,11],[21,13,21,23],[21,25,21,35],[22,1,22,11],[22,13,22,23],[22,25,22,35],[18,1,18,11],[18,13,18,23],[18,25,18,35],[19,1,19,11],[19,13,19,23],[19,25,19,35],[15,1,15,11],[15,13,15,23],[15,25,15,35],[16,1,16,11],[16,13,16,23],[16,25,16,35],[12,1,12,11],[12,13,12,23],[12,25,12,35],[14,1,14,11],[14,13,14,23],[14,25,14,35],[4,1,4,19],[4,30,4,35],[5,1,5,19],[6,21,6,35],[11,1,11,11],[11,13,11,23],[11,25,11,35],[0,0,1,7],[0,8,0,27],[0,28,1,35],[1,8,1,27],[3,1,3,19],[3,30,3,35]]}
[null,null,null,null,null,null,null,null,"UNIFORM ACT / SECTION 104(d)"]
[null,null,null,null,null,null,null,null,"URA Proposed Project Information Form"]
[]
[null,null,null,null,null,null,null,null,null,null,null,null,null,null,null,null,null,null,null,null,null,null," Initial Submission"]
[null,"Project Name",null,null,null,null,null,null,null,null,null,null,null,null,null,null,null,null,null,null,null,null," Updated Information",null,null,null,null,null,null,null,"Date Prepared"]
[null,"(Please reference in all communication with the City.)"]
[]
[null,null,null,null,null,null,null,null,null,null,null,null,null,null,null,null,null,null,null,null,null,"City Project Manager or City contact"]
[]
[null,"SECTION 1: Applicant, Developer & Owner Information"]
[]
[]
[null,"Funding Applicant",null,null,null,null,null,null,null,null,null,null,null,"Developer",null,null,null,null,null,null,null,null,null,null,null,"Property Owner"]
[]
[]
[]
[null,"Address",null,null,null,null,null,null,null,null,null,null,null,"Address",null,null,null,null,null,null,null,null,null,null,null,"Address"]
[]
[]
[null,"E-mail",null,null,null,null,null,null,null,null,null,null,null,"E-mail",null,null,null,null,null,null,null,null,null,null,null,"E-mail"]
[]
[]
[null,"Phone",null,null,null,null,null,null,null,null,null,null,null,"Phone",null,null,null,null,null,null,null,null,null,null,null,"Phone"]
[]
[]
[]
[null,"Contact Person & Title",null,null,null,null,null,null,null,null,null,null,null,"Contact Person & Title",null,null,null,null,null,null,null,null,null,null,null,"Contact Person & Title"]
[]
[null,"SECTION 2: Project & Funding Overview",null,null,null,null,null,null,null,null,null,null,null,null,null,null,null,null,null,null,null,"Attach Sources & Uses of Funds Statement"]
[]
[null,"Type of City Funding Requested:",null,null,null,null,null,null,null,null,null,null,null,null,null," Neighborhood Development Activities",null,null,null,null,null,null,null,null,null,null,null,null,null,null," NEF"]
[null,null,null,null,null,null,null,null,null,null,null,null,null,null,null," Housing Trust Fund (CDBG Funds)",null,null,null,null,null,null,null,null,null,null,null,null,null,null," NDIF"]
[null,null,"$",null,null,null,null,null,null,null,null,null,null,null,"x"," Housing Trust Fund (HOME Funds)",null,null,null,null,null,null,null,null,null,null,null,null,null,null," Core City (CD)"]
[null,null,null,"Amount",null,null,null,null,null,null,null,null,null,null,null," Neighborhood Stabilization Fund (NSP)",null,null,null,null,null,null,null,null,null,null,null,null,null,null," Core City (ED)"]
[null,null,"List ALL City funds — Awarded, pending and/or planned.",null,null,null,null,null,null,null,null,null,null,null,null," 108 Funds"]
[null,null,null,null,null,null,null,null,null,null,null,null,null,null,null," Other (Specify): "]
[null,"Brief Project Description:"]
[]
[]
[]
[]
[]
[null,null,null,null,null,null,null,null,null,null,null,null,null,null,null,null,null,null,null,null,null,null,null,null,null,null,null,null,null,null,null,null,null,null,null,"Please stay within the visible space available.  Submit additional narrative in Word, if necessary."]
[]
[null,"Acquisition",null,null,null,null,null,null,null,"Rehabilitation",null,null,null,null,null,null,"Relocation/Displacement",null,null,null,null,null,null,null,null,null,null,"Demolition"]
[]
[null,null," Involuntary",null,null,null,null,null,null,null," Yes",null,null,null,null,null,null," Temporary (On-site)",null,null,null,null,null,null,null,null,null,null," Yes",null,null,null,null," No"]
[]
[null,null," Voluntary*",null,null,null,null,null,null,null," No",null,null,null,null,null,null," Temporary (Off-site)",null,null,null,null,null,null,null,null,null,"Conversion**"]
[]
[null,null," Donation",null,null,null,null,null,null,null,null,null,null,null,null,null,null," Permanent",null,null,null,null,null,null,null,null,null,"Eliminate Residential Units?"]
[]
[null,null," None (Site already owned)",null,null,null,null,null,null,null,null,null,null,null,null,null,null," No Displacement",null,null,null,null,null,null,null,null,null,null," Yes",null,null,null,null," No"]
[]
[null,null,null,null,null,null,null,null,null,null,null,null,null,null,null,null,null,null,null,null,null,null,null,null,null,null,null,"Change Residential to Commercial?"]
[]
[null,null,null,null,null,null,null,null,null,null,null,null,null,null,null,null,null,null,null,null,null,null,null,null,null,null,null,null," Yes",null,null,null,null," No"]
[]
[null,"Please complete & submit electronically using the latest version."]
[null,"To obtain the latest version & instructions, call the URA Compliance "]
[null,"Officer working on your project or Marc Foy, Lead Compliance Officer, "]
[null,"at (216) 664-4389.",null,null,null,null,null,null,null,null,null,null,null,null,null,null,null,null,null,null,null,null,null,null,"Revised 4/24/12.  Previous versions obsolete. "]

{"sheet":"URA2","index":3,"n_rows":38,"n_cols":18,"rows_kept":38,"cut":false,"hidden":false,"merged":[[17,0,17,17],[7,6,7,14],[8,5,8,14],[9,5,9,14],[10,5,10,16],[12,0,12,17],[16,0,16,17],[0,4,0,10],[0,15,0,16],[1,0,3,17],[4,0,10,1],[4,2,10,4],[4,5,4,14],[4,15,9,16],[4,17,10,17],[5,6,5,14],[6,6,6,14]]}
["SECTION 3: Property Inevntory",null,null,"Project:",{"$f":"#REF!","v":{"$error":"#REF!"}},null,null,null,null,null,null,null,null,null,"Date Submitted:","Enter Date Here"]
["List ALL parcels (1) currently owned by the project, (2) required but not yet purchased, and (3) all others desired or under consideration for the project, whether now or possibly in the future.  A revised list must be submitted at any time additional parcels are considered for actual or potential inclusion in the project.  Please read the Instructions carefully (posted online) to complete this form properly.  Call for help if you are unsure or need assistance."]
[]
[]
["PARCEL & STREET ADDRESS",null,"OWNERSHIP:",null,null,"CHARACTERISTICS AS OF…",null,null,null,null,null,null,null,null,null,"DEMOLITION & CONVERSION ACTIVITIES",null,"COMMENTS"]
[null,null,null,null,null,null," DATE PURCHASED, if acquired for project."]
[null,null,null,null,null,null," DATE OF APPLICATION to the City."]
[null,null,null,null,null,null," TODAY, if Application will be submitted."]
[null,null,null,null,null,"Carefully select the most appropriate date &"]
[null,null,null,null,null,"check box (\"X\") indicating the data entered below."]
[null,null,null,null,null,"Provide numerical answers.  If Zero (0), leave blank."]
["PARCEL NUMBER","STREET ADDRESS","SELLER FROM WHOM PROPERTY WAS ACQUIRED OR WILL BE ACQUIRED",null,null,"VACANT LOT","VACANT STRUCTURE","MIXED-USE STRUCTURE","OCCUPIED STRUCTURE","OWNER-OCCUPANT","RESIDENTIAL TENANT","COMMERCIAL TENANT","TOTAL # STRUCTURES ON PARCEL","TOTAL # UNITS","TOTAL #  OF OCCUPIED UNITS","TOTAL # OF RESIDENTIAL UNITS TO BE CONVERTED","TOTAL # OF RESIDENTIAL UNITS TO BE DEMOLISHED","OPTIONAL BRIEF NOTES"]
["     Below are 3 sample entries showing how information should be entered for each property in your project.  Please check your work carefully."]
["101-01-001","1234 Main Street","Jane Smith",null,"Yes",null,null,"1900-01-01","1900-01-01",null,"1900-01-02","1900-01-01","1900-01-01",3,3,null,2,"Add notes considered unique or critical.  Box will expand."]
["101-01-002","1236 Main Street","Tom Thumb","2011-11-17",null,"1900-01-01"]
["101-01-003","1238 Main Street","John Doe","2012-02-06",null,null,"1900-01-01",null,null,null,null,null,"1900-01-01",2,null,null,2]
[]
[]
["Enter Project Name and Date above, then replace this note with first Parcel Number."]
[{"$f":"'Site Information '!A4","v":"00:00:00"},{"$f":"'Site Information '!B4","v":"00:00:00"},{"$f":"'Site Information '!D4","v":0}]
[{"$f":"'Site Information '!A5","v":"00:00:00"},{"$f":"'Site Information '!B5","v":"00:00:00"},{"$f":"'Site Information '!D5","v":0}]
[{"$f":"'Site Information '!A6","v":"00:00:00"},{"$f":"'Site Information '!B6","v":"00:00:00"},{"$f":"'Site Information '!D6","v":0}]
[{"$f":"'Site Information '!A7","v":"00:00:00"},{"$f":"'Site Information '!B7","v":"00:00:00"},{"$f":"'Site Information '!D7","v":0}]
[{"$f":"'Site Information '!A8","v":"00:00:00"},{"$f":"'Site Information '!B8","v":"00:00:00"},{"$f":"'Site Information '!D8","v":0}]
[{"$f":"'Site Information '!A9","v":"00:00:00"},{"$f":"'Site Information '!B9","v":"00:00:00"},{"$f":"'Site Information '!D9","v":0}]
[{"$f":"'Site Information '!A10","v":"00:00:00"},{"$f":"'Site Information '!B10","v":"00:00:00"},{"$f":"'Site Information '!D10","v":0}]
[{"$f":"'Site Information '!A11","v":"00:00:00"},{"$f":"'Site Information '!B11","v":"00:00:00"},{"$f":"'Site Information '!D11","v":0}]
[{"$f":"'Site Information '!A12","v":"00:00:00"},{"$f":"'Site Information '!B12","v":"00:00:00"},{"$f":"'Site Information '!D12","v":0}]
[{"$f":"'Site Information '!A13","v":"00:00:00"},{"$f":"'Site Information '!B13","v":"00:00:00"},{"$f":"'Site Information '!D13","v":0}]
[{"$f":"'Site Information '!A14","v":"00:00:00"},{"$f":"'Site Information '!B14","v":"00:00:00"},{"$f":"'Site Information '!D14","v":0}]
[{"$f":"'Site Information '!A15","v":"00:00:00"},{"$f":"'Site Information '!B15","v":"00:00:00"},{"$f":"'Site Information '!D15","v":0}]
[{"$f":"'Site Information '!A16","v":"00:00:00"},{"$f":"'Site Information '!B16","v":"00:00:00"},{"$f":"'Site Information '!D16","v":0}]
[{"$f":"'Site Information '!A17","v":"00:00:00"},{"$f":"'Site Information '!B17","v":"00:00:00"},{"$f":"'Site Information '!D17","v":0}]
[{"$f":"'Site Information '!A18","v":"00:00:00"},{"$f":"'Site Information '!B18","v":"00:00:00"},{"$f":"'Site Information '!D18","v":0}]
[{"$f":"'Site Information '!A19","v":"00:00:00"},{"$f":"'Site Information '!B19","v":"00:00:00"},{"$f":"'Site Information '!D19","v":0}]
[{"$f":"'Site Information '!A20","v":"00:00:00"},{"$f":"'Site Information '!B20","v":"00:00:00"},{"$f":"'Site Information '!D20","v":0}]
[{"$f":"'Site Information '!A21","v":"00:00:00"},{"$f":"'Site Information '!B21","v":"00:00:00"},{"$f":"'Site Information '!D21","v":0}]
[{"$f":"'Site Information '!A22","v":"00:00:00"},{"$f":"'Site Information '!B22","v":"00:00:00"},{"$f":"'Site Information '!D22","v":0}]

{"sheet":"URA3 print and sign","index":4,"n_rows":109,"n_cols":31,"rows_kept":109,"cut":false,"hidden":false,"merged":[[107,30,107,33],[108,30,108,33],[2,2,2,37],[3,2,3,37],[6,10,6,36],[90,5,91,25],[90,27,91,36],[93,5,93,25],[93,27,93,36]]}
[]
[]
[null,null,"APPLICANT CERTIFICATION"]
[null,null,"URA PROPOSED PROJECT INFORMATION"]
[]
[]
[null,null,"Project Name: "]
[]
[]
[null,null,"APPLICANT ASSURANCES AND CERTIFICATION:"]
[]
[]
[]
[]
[]
[]
[]
[]
[]
[]
[]
[]
[]
[]
[]
[]
[]
[]
[]
[]
[]
[]
[]
[]
[]
[]
[]
[]
[]
[]
[]
[]
[]
[]
[]
[]
[]
[]
[]
[]
[]
[]
[]
[]
[]
[]
[]
[]
[]
[]
[]
[]
[]
[]
[]
[]
[]
[]
[]
[]
[]
[]
[]
[]
[]
[]
[]
[]
[]
[]
[]
[]
[]
[]
[]
[]
[]
[]
[]
[]
[]
[]
[]
[null,null,null,null,null,"Authorized Agent / Title*",null,null,null,null,null,null,null,null,null,null,null,null,null,null,null,null,null,null,null,null,null,"Date**"]
[]
[]
[]
[null,null,null,null,"* This Applicant Certification must be signed and submitted in hard copy to the City of Cleveland,"]
[null,null,null,null,"   Compliance Section.  The remainder of the URA Proposed Project Information Form can be"]
[null,null,null,null,"   submitted electronically via e-mail."]
[]
[null,null,null,null,"** Date above must match the date shown on Page 1 of the URA Proposed Project Information Form, "]
[null,null,null,null,"     thereby tying this Applicant Certification to that information."]
[]
[null,null,null,null,"Note: Please attach a signed & dated explanation for any special circumstances in conflict with"]
[null,null,null,null,null,null,"  the requirements of this Applicant Certification, and initial here indicating an explanation is"]
[null,null,null,null,null,null,"  attached."]
[]
[null,null,null,null,null,null,null,null,null,null,null,null,null,null,null,null,null,null,null,null,null,null,null,null,null,null,null,null,null,null,"Initials"]